Cogmind - Beta 14 @@@ ROGUE MODE // 2025.03.06 @ 14:48:08 Player: UberDoot Result: Destroyed by G-67 Veteran with Field Laser Performance ------------- Evolutions (7) 3500 Regions Visited (26) 5200 Robots Destroyed (293) 1465 Value Destroyed (15188) 15188 Prototype IDs (62) 1240 Alien Tech Used (5) 1000 Bonus (14663) 14663 TOTAL SCORE: 42256 Bonus ------- Triggered Max Security 1000 High Alert Combat Kills 2781 Follower Combat Kills 2686 Entered Garrisons 600 Used RIF Installer 1500 Aligned with FarCom 300 Met Zhirov 300 Met R17 at Cetus 500 Used Core Reset Matrix 3000 Met R17 at Research 2000 Scanned by Researcher 500 Friendly Fire -504 Cogmind --------- Core Integrity 0/1300 Matter 256/300 Energy 100/100 System Corruption 42% Temperature Cool (12) Movement Core (200) Ox3 Location -3/Quarantine Parts ------- > --- POWER (3) -------- (None) > --- PROPULSION (5) --- (None) > --- UTILITY (9) ------ (None) > --- WEAPON (4) ------- Core Stripper > --- INVENTORY (5) ---- Advanced Drone Bay (2/2) Improved Plasma Cutter Peak State ------------ > --- POWER ------------ Particle-Neutrino Reactor > --- PROPULSION ------- Flying FPA-QT Exoskeleton > --- UTILITY ---------- Armored Scrap Engine Advanced Heat Sink Advanced Cooling System High-capacity Storage Unit Experimental Targeting Computer Improved Weapon Cycler Centrium Medium Armor Plating Improved Force Field > --- WEAPON ----------- Hpw. KE Penetrator Construct/C Core Stripper > --- INVENTORY -------- Experimental Cooling System Makeshift Microdissipator Network Machine Analyzer Experimental Core Analyzer Advanced Transmission Jammer Cloak of Protection Heavy Armor Plating Centrium Medium Armor Plating Graphene Brace Improved Hacking Suite Relay Coupler [NC] High-powered Tractor Beam Advanced Trap Extractor Advanced Drone Bay Subatomic Replicator Long-range Phase Cannon Advanced Remote Datajack Improved Plasma Cutter [Rating: 163] Favorites ----------- Power Constructs Engine Ion Engine Power Core Light Nuclear Core Reactor Constructs Propulsion Constructs Treads Light Treads Hover Unit Aerolev Unit Flight Unit Constructs Utility Armored Scrap Engine Device Armored Scrap Engine Storage High-capacity Storage Unit Processor Experimental Targeting Computer Hackware Relay Coupler [NC] Protection Improved Medium Armor Plating Weapon Constructs Energy Gun EM Shotgun Energy Cannon Advanced Beam Cannon Ballistic Gun Constructs Ballistic Cannon Constructs Launcher Mini Grenade Launcher Special Weapon Improved Remote Datajack Impact Weapon Mace Slashing Weapon Segregator Special Melee Weapon Improved Datajack Build | -11 -10 -10 -10 -9 -8 -8 -8 -6 -6 -6 -6 -5 -5 -5 -5 -5 -5 -4 -4 -4 -4 -4 -3 -3 -3 -3 ------- Run | Yrd Mat Min Exi Min Mat Sto Rec Fac Gar Fac Gar Fac Was Fac Upp Upp Zhi Pro Fac Ext Cet Arc Res Gar Res Qua Slots Evolved 14 | . . . . . 4 . . 4 . . . 2 . . . . . . 2 . . . 2 . . . Power 2 | . . . . . . . . 1 . . . . . . . . . . 1 . . . . . . . Propulsion 3 | . . . . . 1 . . 1 . . . 1 . . . . . . . . . . . . . . Utility 7 | . . . . . 2 . . 2 . . . 1 . . . . . . 1 . . . 1 . . . Weapon 2 | . . . . . 1 . . . . . . . . . . . . . . . . . 1 . . . Parts Attached 322 | 7 9 3 1 5 31 34 5 13 20 4 19 8 2 25 16 6 4 12 13 24 9 2 15 21 . 14 Power 11 | 1 1 . . . 2 3 . . . . . . . . . . . . 2 2 . . . . . . Engine 5 | 1 1 . . . 1 2 . . . . . . . . . . . . . . . . . . . . Core 6 | . . . . . 1 1 . . . . . . . . . . . . 2 2 . . . . . . Reactor . | . . . . . . . . . . . . . . . . . . . . . . . . . . . Propulsion 26 | 2 . . . 1 10 12 1 . . . . . . . . . . . . . . . . . . . Treads 24 | 2 . . . 1 10 10 1 . . . . . . . . . . . . . . . . . . . Leg . | . . . . . . . . . . . . . . . . . . . . . . . . . . . Wheel . | . . . . . . . . . . . . . . . . . . . . . . . . . . . Hover 2 | . . . . . . 2 . . . . . . . . . . . . . . . . . . . . Flight . | . . . . . . . . . . . . . . . . . . . . . . . . . . . Utility 157 | 2 2 1 . . 7 6 2 10 9 4 6 5 2 15 15 2 3 6 8 9 5 2 13 12 . 11 Device 89 | 1 . 1 . . 3 1 2 4 4 1 3 3 2 10 10 1 1 5 5 5 2 . 10 7 . 8 Storage 8 | 1 2 . . . . . . 1 . . . . . . 2 . . 1 . . . . . . . 1 Processor 5 | . . . . . 1 . . 1 . 2 . 1 . . . . . . . . . . . . . . Hackware 7 | . . . . . . . . 1 . . . . . 1 . . . . 1 . . 1 1 2 . . Protection 48 | . . . . . 3 5 . 3 5 1 3 1 . 4 3 1 2 . 2 4 3 1 2 3 . 2 Artifact . | . . . . . . . . . . . . . . . . . . . . . . . . . . . Weapon 128 | 2 6 2 1 4 12 13 2 3 11 . 13 3 . 10 1 4 1 6 3 13 4 . 2 9 . 3 Energy Gun 15 | 1 3 1 . 3 4 . . . . . . . . . . . . . . 1 2 . . . . . Energy Cannon 17 | . 1 . . . . 2 1 . . . . . . . . . . . 2 6 1 . 1 3 . . Ballistic Gun 18 | 1 1 . . . 6 6 . . . . . . . 1 . 1 . . . . 1 . 1 . . . Ballistic Cannon 2 | . . . . . . . . . . . . . . . . . . 1 1 . . . . . . . Launcher 21 | . 1 1 . 1 . 1 . 1 3 . 3 . . 3 . 1 . 2 . 1 . . . 3 . . Special Weapon 18 | . . . 1 . . 2 . . 2 . . 1 . . . . 1 3 . 5 . . . 3 . . Impact Weapon 31 | . . . . . 2 2 1 2 5 . 7 2 . 5 1 2 . . . . . . . . . 2 Slashing Weapon 2 | . . . . . . . . . . . . . . 1 . . . . . . . . . . . 1 Piercing Weapon . | . . . . . . . . . . . . . . . . . . . . . . . . . . . Special Melee Weapon 4 | . . . . . . . . . 1 . 3 . . . . . . . . . . . . . . . Unidentified Prototypes 21 | . . . . . 1 4 1 1 . . . . 1 2 . . 1 . . . 3 . 3 . . 4 Parts Lost 35 | . . . . . 3 1 . . 4 . . . . 2 . . . 2 . . 1 . . 4 . 18 Power 7 | . . . . . 1 1 . . 1 . . . . 1 . . . . . . . . . 1 . 2 Propulsion 6 | . . . . . 1 . . . . . . . . . . . . . . . . . . . . 5 Utility 16 | . . . . . . . . . 2 . . . . 1 . . . 2 . . 1 . . 2 . 8 Weapon 6 | . . . . . 1 . . . 1 . . . . . . . . . . . . . . 1 . 3 Highest Loss Streak 17 | . . . . . 3 1 . . 2 . . . . 1 . . . 1 . . 1 . . 3 . 17 To Critical Strikes . | . . . . . . . . . . . . . . . . . . . . . . . . . . . Average Slot Usage (%) 65 | . 99 100 84 100 96 98 69 60 59 59 59 57 57 57 58 58 58 57 57 56 56 56 57 56 57 45 Engine 4 | . 14 14 14 14 5 4 9 1 5 6 5 5 5 3 4 5 5 5 1 2 . . . . . . Reactor 1 | . . . . . . . . . . . . . . . . . . . 3 2 5 5 4 4 3 3 Treads 6 | . 28 28 28 28 26 26 4 4 . . 1 . . . . . . . . 2 5 5 2 4 1 . Leg 2 | . . . . . . . 5 1 5 6 3 4 5 4 5 5 5 5 . . . . 1 . . . Device 14 | . 14 14 14 14 10 9 9 8 10 18 13 16 16 16 17 17 17 16 15 15 15 21 19 21 23 16 Storage 6 | . 14 14 14 14 9 9 9 6 6 6 6 5 5 5 5 5 5 5 5 5 5 5 4 4 4 4 Processor 5 | . . . . . 9 9 9 12 6 6 6 5 5 5 5 5 5 5 5 5 5 5 4 4 4 3 Protection 4 | . . . . . 5 7 1 1 6 1 5 5 5 5 4 4 5 5 5 7 9 4 3 4 4 3 Energy Gun 2 | . 14 27 . 23 17 1 . . 2 6 . . . . . . . . . . . . . . . . Energy Cannon 3 | . 6 . . . . 14 15 6 . . . . . . . . . . 2 4 4 5 6 4 5 5 Ballistic Gun 1 | . 6 . . . 8 9 3 . . . . . . . . . . . . . . . . . . . Ballistic Cannon 3 | . . . . . . . . 3 2 . 5 5 5 5 5 5 5 5 5 5 5 5 1 2 3 1 Impact Weapon 2 | . . . . . . . . 2 5 6 5 5 5 4 5 4 1 . . . . . . . . . Peak Build Rating 163 | 8 10 12 12 13 25 26 47 69 70 72 78 96 96 104 94 95 101 103 108 116 120 120 154 150 143 163 Average Rating 77 | 6 8 11 9 12 21 21 39 54 63 64 71 79 95 96 92 92 96 101 101 104 115 119 144 135 137 124 On Entrance 72 | . 8 10 12 10 13 20 24 46 67 64 72 69 96 96 92 92 92 101 102 102 110 119 120 147 132 141 Naked Turns 7 | . . . . . . . . . . . . . . . . . . . . . . . . . . 7 Heaviest Build 132 | 11 32 32 32 32 38 49 49 65 76 58 91 100 100 103 77 70 72 72 79 84 108 108 126 132 118 118 Greatest Support 191 | 40 40 40 40 40 60 60 66 66 65 48 106 133 133 133 120 120 120 120 120 191 191 191 191 128 106 130 Greatest Overweight (x) 35 | . . . . . 1 . 2 1 1 1 1 2 . . . . . . . . . 35 . 1 1 3 Average Overweight (x) . | . . . . . . . . . . 1 . . . . . . . . . . . 5 . . . . Largest Inventory Capacity 20 | 8 15 15 15 15 15 15 15 20 20 20 20 20 20 20 20 20 20 20 20 20 20 20 20 20 20 20 Average Capacity 18 | 7 10 15 15 15 15 15 15 16 20 20 20 20 20 20 20 20 20 20 20 20 20 20 20 20 20 19 Most Carried 20 | 8 15 15 15 15 15 15 15 20 20 19 20 20 20 20 20 20 20 20 20 20 20 20 20 20 20 20 Average Carried 18 | 5 9 15 14 14 14 14 14 16 18 18 19 19 20 19 19 20 19 19 19 19 19 19 19 19 20 18 Final Capacity 20 | 8 15 15 15 15 15 15 15 20 20 20 20 20 20 20 20 20 20 20 20 20 20 20 20 20 20 5 Final Carried 20 | 8 15 15 15 15 15 15 15 20 19 19 20 20 20 20 20 20 20 19 20 20 20 20 20 20 20 3 Scrap Engine Consumption 237 | . . . . . . . 21 16 27 5 36 13 . 17 4 . 4 3 7 22 6 . 15 24 13 4 Constructs Created 4 | . . . . . . . 2 1 1 . . . . . . . . . . . . . . . . . Constructs Modified 104 | . . . . . . . 5 6 12 1 18 6 . 8 1 . 2 . 5 6 2 . 12 9 6 5 Class Distribution -------------------- 35% | Trapper-Construct 18% | Commander-Construct 13% | Scavenger-Construct 12% | Construct 9% | Mutant 6% | Scavenger-Skirmisher 4% | Skirmisher Dominant Class ---------------- Mutant | -10/Materials Mutant | -10/Mines Mutant | -10/Exiles Skirmisher | -9/Mines Scavenger-Skirmisher | -8/Materials Scavenger-Skirmisher | -8/Storage Construct | -8/Recycling Construct | -6/Factory Construct | -6/Garrison Commander-Construct | -6/Factory Commander-Construct | -6/Garrison Commander-Construct | -5/Factory Scavenger-Construct | -5/Waste Scavenger-Construct | -5/Factory Scavenger-Construct | -5/Upper Caves Trapper-Construct | -5/Upper Caves Trapper-Construct | -5/Zhirov Trapper-Construct | -4/Proximity Caves Trapper-Construct | -4/Factory Trapper-Construct | -4/Extension Trapper-Construct | -4/Cetus Trapper-Construct | -4/Archives Trapper-Construct | -3/Research Trapper-Construct | -3/Garrison Trapper-Construct | -3/Research Trapper-Construct | -3/Quarantine Resources | -11 -10 -10 -10 -9 -8 -8 -8 -6 -6 -6 -6 -5 -5 -5 -5 -5 -5 -4 -4 -4 -4 -4 -3 -3 -3 -3 ----------- Run | Yrd Mat Min Exi Min Mat Sto Rec Fac Gar Fac Gar Fac Was Fac Upp Upp Zhi Pro Fac Ext Cet Arc Res Gar Res Qua Matter Collected 10923 | 290 239 89 . 114 482 630 88 144 512 . 800 282 . 1601 791 177 394 345 604 594 418 191 278 1295 260 305 Remotely 20 | . . . . . . . . . . . . . . . . . . . . 20 . . . . . . Salvage Created 16007 | 143 198 25 . 23 782 830 487 604 1546 . 1251 416 . 2619 589 273 394 72 975 1246 488 557 301 1605 412 171 Parts 701 | 10 18 4 . 9 55 47 27 15 40 . 44 21 . 143 13 1 7 3 45 46 20 19 20 56 31 7 Haulers Intercepted 4 | . . . . . 1 2 . . . . . . . . . . . . 1 . . . . . . . Recyclers Shooed 4 | 1 . . . . . . . . . . . 1 . . . . . . 2 . . . . . . . Parts Field Recycled . | . . . . . . . . . . . . . . . . . . . . . . . . . . . Retrieved Matter . | . . . . . . . . . . . . . . . . . . . . . . . . . . . Parts Self-Destructed 14 | . . . . . . . . . . . . . . . 8 1 2 3 . . . . . . . . Prevented . | . . . . . . . . . . . . . . . . . . . . . . . . . . . Kills | -11 -10 -10 -10 -9 -8 -8 -8 -6 -6 -6 -6 -5 -5 -5 -5 -5 -5 -4 -4 -4 -4 -4 -3 -3 -3 -3 ------- Run | Yrd Mat Min Exi Min Mat Sto Rec Fac Gar Fac Gar Fac Was Fac Upp Upp Zhi Pro Fac Ext Cet Arc Res Gar Res Qua Combat Hostiles Destroyed 227 | . 5 3 . 4 21 12 7 6 21 . 19 5 . 44 4 5 . 3 9 7 7 4 8 25 6 2 Guns 31 | . 5 . . . 19 4 1 . 1 . 1 . . . . . . . . . . . . . . . Cannons 138 | . . . . . . 8 6 3 12 . 12 5 . 30 4 1 . 1 9 7 7 3 8 14 6 2 AOE 49 | . . 3 . 4 . . . . 6 . 5 . . 14 . 4 . 2 . . . . . 11 . . Classes Destroyed 26 | 2 3 . . 1 4 2 2 2 3 . 1 . . 1 2 . . 1 . 1 . . . . . 1 Worker 5 | . . . . 1 1 1 . . . . . . . 2 . . . . . . . . . . . . Builder 8 | . . . . . 1 . . . . . . . . 6 . . . . . 1 . . . . . . Tunneler 8 | 4 1 1 . . . . . . . . . . . 1 . . . . . . . . 1 . . . Hauler 4 | . . . . . 1 2 . . . . . . . . . . . . 1 . . . . . . . Recycler 13 | 1 . . . . . 1 . 2 . . . 1 . . . . . . 2 6 . . . . . . Minesweeper 2 | . . . . . . . . . . . . . . . 1 1 . . . . . . . . . . Mechanic 5 | . . . . . . 2 . . . . . . . 3 . . . . . . . . . . . . Operator 8 | . . . . . . 1 . . . . . . . 1 . . . . . . . 6 . . . . Drone 1 | . . . . . . . . . . . . . . . . . . 1 . . . . . . . . Watcher 11 | . 1 . . . 1 1 . . . . . . . 4 . . . . 3 . 1 . . . . . Swarmer 43 | . 3 3 . 4 10 1 . . . . 5 1 . 4 . . . . . . . . 7 5 . . Cutter 1 | . . . . . . . . . 1 . . . . . . . . . . . . . . . . . Saboteur 2 | . . . . . . . . . . . 1 . . . . . . . . . . . . . . 1 Grunt 64 | . 2 . . . 3 2 . . 6 . 10 1 . 17 2 3 . . 1 2 3 . 1 10 . 1 Brawler 9 | . . . . . . . . . 2 . 2 . . 3 1 1 . . . . . . . . . . Duelist 7 | . . . . . . . . . 5 . . . . 2 . . . . . . . . . . . . Protector 1 | . . . . . . . . . . . . . . 1 . . . . . . . . . . . . Sentry 47 | . . . . . 6 9 4 2 . . 2 1 . 6 1 1 . . 2 3 . 4 . 6 . . Specialist 2 | . . . . . . . . 2 . . . . . . . . . . . . . . . . . . Hunter 21 | . . . . . 2 . . . 7 . . . . 5 . . . 2 . 1 . . . . 4 . Programmer 21 | . . . . . . . . 2 . . . 2 . 6 . . . . 6 . . . . 3 2 . Behemoth 2 | . . . . . . . . . . . . . . . . . . . . 1 . . . 1 . . Cetus Guard 4 | . . . . . . . . . . . . . . . . . . . . . 4 . . . . . Investigator 1 | . . . . . . . . . . . . . . . . . . . . . . . . . . 1 Scientist 2 | . . . . . . . 2 . . . . . . . . . . . . . . . . . . . Scrapper 3 | . . . . . . . 3 . . . . . . . . . . . . . . . . . . . Decomposer 2 | . . . . . . . . . . . . . . . . 2 . . . . . . . . . . Samaritan 7 | . . . . . . . . . . . . . . . 6 1 . . . . . . . . . . Best Kill Streak 14 | 2 3 3 . 5 8 3 2 3 8 . 3 3 . 14 3 5 . 1 4 4 3 6 5 8 3 1 Combat Bots Only 11 | . 3 3 . 4 8 2 2 2 8 . 3 2 . 11 3 5 . 1 3 3 3 4 4 8 3 1 Max Kills in Single Turn 6 | 1 1 2 . 3 2 2 1 1 3 . 3 1 . 6 1 3 . 1 1 1 1 1 1 4 1 1 Gunslinging 1 | . . . . . 1 . . . . . . . . . . . . . . . . . . . . . Exploded 4 | . . 2 . 3 . . . . 3 . 3 . . 3 . 3 . 1 . . . . . 4 . . Melee . | . . . . . . . . . . . . . . . . . . . . . . . . . . . Uniques/NPCs Destroyed . | . . . . . . . . . . . . . . . . . . . . . . . . . . . Combat | -11 -10 -10 -10 -9 -8 -8 -8 -6 -6 -6 -6 -5 -5 -5 -5 -5 -5 -4 -4 -4 -4 -4 -3 -3 -3 -3 -------- Run | Yrd Mat Min Exi Min Mat Sto Rec Fac Gar Fac Gar Fac Was Fac Upp Upp Zhi Pro Fac Ext Cet Arc Res Gar Res Qua Hostile Shots Fired 1729 | . 28 6 . 2 119 48 12 63 142 . 58 19 . 152 15 9 . 80 36 41 29 9 24 213 94 530 Missed 560 | . 5 1 . 1 27 13 . 29 46 . 17 5 . 48 4 2 . 33 11 16 11 3 5 54 31 198 Damage Taken 20313 | . 278 77 . 7 1068 476 287 343 2005 138 620 243 . 2071 232 189 . 814 531 666 551 170 444 3315 664 5124 Core 2031 | . 59 6 . . 130 37 21 35 174 28 22 . . 216 . 21 . 42 21 . . . 27 210 27 955 Absorbed by Shields 3548 | . . . . . . . . . . . 49 . . . . . . . . . . . 74 1316 283 1826 Reduced by Siege Mode 69 | . . . . . . . . . . . 13 . . . . . . . . . . . 56 . . . Redirected to Shielding 272 | . . . . . . . . . 81 . . . . . . . . . . . 108 . . 83 . . Ignored by Resistances 144 | . . . . . . 15 3 . 126 . . . . . . . . . . . . . . . . . Regen/Repaired (Parts) 7496 | . . . . . 193 94 25 231 1022 9 444 156 . 960 101 . 452 . 672 377 158 . 220 1808 377 197 Core Remaining (%) 79 | 100 . . . 74 . . 65 . . . 69 . . . . . . 72 . . . 98 . . . . Volleys Fired 837 | 20 22 2 . 3 43 43 16 26 81 1 57 16 . 116 30 17 18 29 56 40 31 19 17 89 20 25 Largest 3 | 2 2 1 . 1 3 3 3 2 2 1 2 1 . 1 1 1 1 1 2 2 2 2 2 2 2 2 Hottest 211 | 60 90 30 . 30 137 159 159 156 93 83 166 82 . 82 82 82 106 106 211 211 211 211 211 211 211 211 Shots Fired 1254 | 40 45 3 . 3 127 129 42 45 83 1 58 16 . 114 28 17 17 29 77 69 47 34 31 134 40 25 Gun 332 | 40 39 1 . . 127 79 14 . 16 1 15 . . . . . . . . . . . . . . . Cannon 871 | . 5 . . . . 50 28 45 60 . 37 15 . 108 28 15 17 24 76 62 47 34 31 124 40 25 Launcher 39 | . 1 2 . 3 . . . . 7 . 6 . . 6 . 2 . 5 . . . . . 7 . . Special 12 | . . . . . . . . . . . . 1 . . . . . . 1 7 . . . 3 . . Kinetic 671 | 20 5 . . . 66 61 10 7 60 . 37 15 . 108 28 15 17 24 11 31 31 19 14 58 18 16 Thermal 471 | 20 5 . . . 35 68 32 38 16 1 15 . . . . . . . 65 31 16 15 17 66 22 9 Explosive 39 | . 1 2 . 3 . . . . 7 . 6 . . 6 . 2 . 5 . . . . . 7 . . Electromagnetic 61 | . 34 1 . . 26 . . . . . . . . . . . . . . . . . . . . . Robot Hit Streak 41 | 9 7 4 . 1 16 16 12 27 9 1 36 4 . 8 8 6 9 4 26 41 24 13 21 26 9 8 Robot Miss Streak 19 | 4 3 2 . . 4 6 2 6 19 1 6 4 . 4 1 4 1 2 2 2 2 4 2 5 2 2 Penetration Max 1 | . . . . . . . . . . . 1 . . 1 . . . . . . . . . . . 1 Secondary Targets 5 | . . . . . 5 . . . . . . . . . . . . . . . . . . . . . Max Gunslinging Chain 2 | . . . . . 2 . . . . . . . . . . . . . . . . . . . . . Shots Hit Robots 934 | 24 32 1 . 1 91 84 25 38 93 1 65 11 . 66 29 9 16 14 49 58 41 25 21 100 27 13 Core Hits 650 | 8 14 5 . 8 43 32 16 17 78 . 50 4 . 109 8 26 4 6 21 30 25 14 11 106 8 7 Critical Kills 11 | . . . . . . . . 1 . . . . . 1 1 1 1 . . . 2 1 1 2 . . Critical Parts Destroyed 8 | . . . . . . . . . 1 . 2 . . 1 2 . . . 1 . 1 . . . . . Critical Strikes 26 | . . . . . 1 1 . 1 1 . 2 1 . 3 3 1 1 . 1 . 5 1 1 3 . . Burn 2 | . . . . . 1 1 . . . . . . . . . . . . . . . . . . . . Meltdown 4 | . . . . . . . . 1 . . . . . . . . . . . . . 1 . 2 . . Destroy 14 | . . . . . . . . . . . 1 . . 2 1 1 1 . 1 . 5 . 1 1 . . Blast 2 | . . . . . . . . . . . . 1 . 1 . . . . . . . . . . . . Smash 4 | . . . . . . . . . 1 . 1 . . . 2 . . . . . . . . . . . Melee Attacks 154 | . . . . . 4 8 . . 43 . 29 1 . 25 15 26 . . . . . . . . . 3 Thermal 3 | . . . . . . . . . . . . . . . . . . . . . . . . . . 3 Impact 133 | . . . . . 4 8 . . 39 . 15 1 . 25 15 26 . . . . . . . . . . Slashing . | . . . . . . . . . . . . . . . . . . . . . . . . . . . Piercing . | . . . . . . . . . . . . . . . . . . . . . . . . . . . Sneak Attacks 27 | . . . . . . . . . 4 . 13 . . 2 4 4 . . . . . . . . . . Combat Hostiles . | . . . . . . . . . . . . . . . . . . . . . . . . . . . Follow-up Attacks . | . . . . . . . . . . . . . . . . . . . . . . . . . . . Damage Inflicted 47319 | 222 338 208 . 192 1725 1645 500 1102 4904 11 3185 882 . 8195 1452 1276 844 616 2452 2835 2642 1577 1092 7112 1124 1188 Guns 3551 | 222 303 11 . . 1496 909 93 . 254 11 252 . . . . . . . . . . . . . . . Cannons 31350 | . 35 . . . . 736 407 1060 1201 . 1668 882 . 5508 1008 336 844 324 2452 2835 2642 1577 1092 4431 1124 1188 Explosions 8597 | . . 197 . 192 224 . . 42 1162 . 597 . . 2552 . 658 . 292 . . . . . 2681 . . Melee 3816 | . . . . . . . . . 2287 . 668 . . 135 444 282 . . . . . . . . . . Ramming 5 | . . . . . 5 . . . . . . . . . . . . . . . . . . . . . Kinetic 23770 | 89 27 . . . 794 640 65 184 1201 . 1668 882 . 5508 1008 336 844 324 321 1931 2214 1254 695 2400 369 1016 Thermal 10946 | 133 35 48 . . 565 1005 435 918 254 11 252 . . 149 . . . . 2131 904 428 323 397 2031 755 172 Explosive 8134 | . . 149 . 192 . . . . 1162 . 597 . . 2403 . 658 . 292 . . . . . 2681 . . Electromagnetic 648 | . 276 11 . . 361 . . . . . . . . . . . . . . . . . . . . . Impact 3816 | . . . . . . . . . 2287 . 668 . . 135 444 282 . . . . . . . . . . Slashing . | . . . . . . . . . . . . . . . . . . . . . . . . . . . Piercing . | . . . . . . . . . . . . . . . . . . . . . . . . . . . Highest Corruption 42 | . 2 2 2 2 . . . . 1 1 1 . 14 17 17 17 17 17 1 6 6 6 . 2 15 42 Average Corruption 7 | . 1 2 2 2 . . . . 1 1 1 . 7 15 17 17 17 17 1 2 6 6 . 2 13 17 Corruption Purged . | . . . . . . . . . . . . . . . . . . . . . . . . . . . Corruption Blocked . | . . . . . . . . . . . . . . . . . . . . . . . . . . . Effects 314 | . 7 9 5 3 . . . . 4 1 16 . 7 63 50 35 13 14 . 14 15 20 . 4 13 21 Message Errors 74 | . . 1 . 1 . . . . 2 . 5 . 2 18 15 7 2 4 . 3 5 2 . 1 1 5 Matter Fused 79 | . . 2 2 1 . . . . 2 . 4 . 1 15 9 12 4 4 . 2 5 2 . 3 6 5 Heat Flow Errors 28 | . 1 . 1 1 . . . . . . 2 . 2 3 10 2 . 2 . . 1 3 . . . . Energy Discharges 42 | . 1 3 1 . . . . . . . 1 . 1 10 4 6 4 . . 1 1 5 . . 1 3 Parts Rejected 5 | . . . . . . . . . . . . . . 2 1 . . . . . . . . . . 2 Parts Fused 3 | . . . . . . . . . . 1 . . . . . 1 . . . . . . . . . 1 Data Loss (minor) 34 | . 3 2 . . . . . . . . 1 . . 8 5 5 . 2 . 2 2 2 . . 1 1 Data Loss (major) 16 | . . . . . . . . . . . 1 . . 4 3 1 1 1 . 3 . 1 . . 1 . Misfires 7 | . 2 1 . . . . . . . . . . . . . . . . . 2 . 1 . . 1 . Alerts 13 | . . . 1 . . . . . . . 2 . . 1 1 1 1 1 . . . 4 . . 1 . Misdirections 4 | . . . . . . . . . . . . . 1 . . . . . . . . . . . . 3 Weapon Failures 9 | . . . . . . . . . . . . . . 2 2 . 1 . . 1 1 . . . 1 1 Overload Shots . | . . . . . . . . . . . . . . . . . . . . . . . . . . . Overflow Damage 3017 | . . . . . 2 . . 44 474 . 122 191 . 714 370 298 176 . 196 25 24 47 43 121 155 15 Projectiles 1864 | . . . . . . . . 32 . . . 191 . 597 146 96 176 . 196 25 24 47 43 121 155 15 Explosions 91 | . . . . . 2 . . 12 21 . . . . 56 . . . . . . . . . . . . Melee 1062 | . . . . . . . . . 453 . 122 . . 61 224 202 . . . . . . . . . . Knockbacks 103 | . . . . . . . . 4 25 . 6 4 . 17 6 2 7 1 1 3 3 1 5 1 6 11 Impact 5 | . . . . . . . . . . . 1 . . 1 3 . . . . . . . . . . . Kinetic 91 | . . . . . . . . 4 25 . 4 4 . 15 3 2 6 1 1 2 3 1 4 1 6 9 Secondary 7 | . . . . . . . . . . . 1 . . 1 . . 1 . . 1 . . 1 . . 2 Self-Inflicted Damage 790 | . 22 38 . . 60 . . . 294 . 7 . . 62 . 21 . . . . . . . 286 . . Shots 33 | . 1 2 . . 2 . . . 12 . 1 . . 2 . 1 . . . . . . . 12 . . Rammed 1 | . . . . . 1 . . . . . . . . . . . . . . . . . . . . . Targets Rammed 1 | . . . . . 1 . . . . . . . . . . . . . . . . . . . . . Kicked . | . . . . . . . . . . . . . . . . . . . . . . . . . . . Crushed . | . . . . . . . . . . . . . . . . . . . . . . . . . . . Highest Temperature 423 | 40 262 18 191 127 372 357 213 258 178 . 204 . 216 403 245 71 192 269 300 410 423 175 294 238 267 3 Average Temperature 90 | 20 88 16 97 69 107 65 87 121 56 . 76 . 100 116 72 37 75 87 94 119 112 65 85 57 111 3 Received Heat Transfer 3053 | . 105 . . . 243 171 139 54 216 . 189 45 . 312 63 27 . 45 48 91 33 18 54 480 . 720 Effects 20 | . 1 . . . 3 1 . 3 . . . . . 8 . . . 2 1 1 . . . . . . Shutdowns 1 | . . . . . . . . . . . . . . . . . . . . 1 . . . . . . Energy Bleed 3 | . 1 . . . . 1 . . . . . . . . . . . . 1 . . . . . . . Interference 16 | . . . . . 3 . . 3 . . . . . 8 . . . 2 . . . . . . . . Siege Activations 3 | . . . . . . . . . . . 2 . . . . . . . . . . . 1 . . . Total Turns 41 | . . . . . . . . . . . 21 . . . . . . . . . . . 20 . . . Longest Duration 20 | . . . . . . . . . . . 13 . . . . . . . . . . . 20 . . . Robots Corrupted 15 | . . . . . 2 . . . 6 . 2 . . 1 3 1 . . . . . . . . . . Combat Hostiles 4 | . . . . . 2 . . . 1 . 1 . . . . . . . . . . . . . . . Parts Fried 27 | . . . . . 2 . . . 15 . 1 . . 4 3 2 . . . . . . . . . . Impact Corruptions 45 | . . . . . . . . . 12 . 3 . . 3 13 13 1 . . . . . . . . . Robots Melted 10 | . . . . . . . . 5 1 . 1 . . . . . . . . . . 1 . 2 . . Combat Hostiles 8 | . . . . . . . . 3 1 . 1 . . . . . . . . . . 1 . 2 . . Parts Melted 36 | . . . . . . 4 5 16 1 . 2 . . . . . . . 1 . . . 1 5 . 1 Heat Transferred 14237 | 300 74 50 . . 1014 1998 718 2270 777 37 777 . . 100 . . . . 1466 925 444 333 407 1718 692 137 Parts Sabotaged 5 | . . . . . . . . . . . 3 . . . . . . . . . . . . . . 2 Parts Stolen . | . . . . . . . . . . . . . . . . . . . . . . . . . . . Parts Stripped . | . . . . . . . . . . . . . . . . . . . . . . . . . . . Power Chain Reactions 4 | . 1 1 . . 2 . . . . . . . . . . . . . . . . . . . . . Alert | -11 -10 -10 -10 -9 -8 -8 -8 -6 -6 -6 -6 -5 -5 -5 -5 -5 -5 -4 -4 -4 -4 -4 -3 -3 -3 -3 ------- Run | Yrd Mat Min Exi Min Mat Sto Rec Fac Gar Fac Gar Fac Was Fac Upp Upp Zhi Pro Fac Ext Cet Arc Res Gar Res Qua Peak Influence 2309 | 25 197 83 . 117 353 754 354 120 1035 689 2097 1299 402 1443 . . . . 302 371 465 360 129 1399 981 2309 Initial 1100 | . 16 18 . . 45 127 294 . 41 543 342 1100 402 281 . . . . 150 147 144 106 60 27 786 551 Average 518 | 12 89 39 . 50 180 574 152 60 554 644 1289 1119 402 663 . . . . 155 242 312 252 35 717 868 1765 Maximum Alert Level 5 | . . . . . 1 3 1 . 3 2 5 4 2 4 . . . . 1 1 2 1 . 4 3 5 Low Security (%) 38 | 100 100 100 . 100 50 7 71 100 16 . . . . . . . . . 79 31 9 45 100 23 . . Level 1 17 | . . . . . 49 5 28 . 30 . 3 . . 19 . . . . 20 68 65 54 . 1 . . Level 2 14 | . . . . . . 68 . . 17 100 8 . 100 38 . . . . . . 24 . . 31 . . Level 3 14 | . . . . . . 17 . . 35 . 23 28 . 38 . . . . . . . . . 23 100 . Level 4 10 | . . . . . . . . . . . 43 71 . 2 . . . . . . . . . 20 . . Level 5 2 | . . . . . . . . . . . 21 . . . . . . . . . . . . . . . High Security . | . . . . . . . . . . . . . . . . . . . . . . . . . . . Max Security 1 | . . . . . . . . . . . . . . . . . . . . . . . . . . 99 Squads Dispatched 74 | . 1 . . . 6 4 . 3 . 2 . 2 . 16 . 1 . . 3 1 1 . 6 . 8 20 Investigation 7 | . . . . . . 1 . . . . . . . 2 . . . . 1 . 1 . 1 . 1 . Extermination 8 | . . . . . . . . 2 . . . 1 . 2 . . . . 2 . . . . . 1 . Reinforcement 23 | . 1 . . . 3 . . 1 . 1 . 1 . 6 . . . . . 1 . . 5 . 4 . Assault 29 | . . . . . . . . . . 1 . . . 6 . 1 . . . . . . . . 1 20 Garrison 7 | . . . . . 3 3 . . . . . . . . . . . . . . . . . . 1 . Intercept . | . . . . . . . . . . . . . . . . . . . . . . . . . . . Searches Triggered . | . . . . . . . . . . . . . . . . . . . . . . . . . . . Construction Impeded 3 | . . . . . 1 . . . . . . . . 2 . . . . . . . . . . . . Haulers Reinforced 3 | . . . . . . . . . . . . . . 1 . . . . . . . . 2 . . . Active Scanning Responses . | . . . . . . . . . . . . . . . . . . . . . . . . . . . Cargo Convoy Interrupts . | . . . . . . . . . . . . . . . . . . . . . . . . . . . Stealth | -11 -10 -10 -10 -9 -8 -8 -8 -6 -6 -6 -6 -5 -5 -5 -5 -5 -5 -4 -4 -4 -4 -4 -3 -3 -3 -3 --------- Run | Yrd Mat Min Exi Min Mat Sto Rec Fac Gar Fac Gar Fac Was Fac Upp Upp Zhi Pro Fac Ext Cet Arc Res Gar Res Qua Distress Signals 22 | . . . . . 2 2 . 1 . 1 . 1 . 2 . . . . . 2 2 . 7 . 2 . Communications Jammed . | . . . . . . . . . . . . . . . . . . . . . . . . . . . Distress Signals . | . . . . . . . . . . . . . . . . . . . . . . . . . . . Times Spotted 492 | . 11 3 . 3 26 30 6 9 28 4 33 9 2 59 4 5 . 7 22 17 9 4 14 37 9 141 Peak Tracking Total 69 | . 3 3 . . 6 7 4 2 8 3 6 4 2 13 2 10 . 4 3 6 5 1 6 10 4 69 Tactical Retreats 21 | . 1 . . . . . . . 2 . 3 . . 1 . 2 . . 4 . . . . 1 . 7 Traps | -11 -10 -10 -10 -9 -8 -8 -8 -6 -6 -6 -6 -5 -5 -5 -5 -5 -5 -4 -4 -4 -4 -4 -3 -3 -3 -3 ------- Run | Yrd Mat Min Exi Min Mat Sto Rec Fac Gar Fac Gar Fac Was Fac Upp Upp Zhi Pro Fac Ext Cet Arc Res Gar Res Qua Traps Triggered 30 | . 2 . . . 1 . . . 7 . 6 1 . 3 . . . . 1 3 . . . 2 4 . Indirectly . | . . . . . . . . . . . . . . . . . . . . . . . . . . . Trap Hack Attempts . | . . . . . . . . . . . . . . . . . . . . . . . . . . . Triggered . | . . . . . . . . . . . . . . . . . . . . . . . . . . . Disarmed . | . . . . . . . . . . . . . . . . . . . . . . . . . . . Reprogrammed . | . . . . . . . . . . . . . . . . . . . . . . . . . . . Reused . | . . . . . . . . . . . . . . . . . . . . . . . . . . . Traps Extracted . | . . . . . . . . . . . . . . . . . . . . . . . . . . . Installed 8 | . . 4 . . . . . . . . . . . . 4 . . . . . . . . . . . Triggered . | . . . . . . . . . . . . . . . . . . . . . . . . . . . Most Traps Carried 8 | . . . . . . . . . . . . . . . 4 8 8 8 8 8 8 8 8 8 8 8 Machines | -11 -10 -10 -10 -9 -8 -8 -8 -6 -6 -6 -6 -5 -5 -5 -5 -5 -5 -4 -4 -4 -4 -4 -3 -3 -3 -3 ---------- Run | Yrd Mat Min Exi Min Mat Sto Rec Fac Gar Fac Gar Fac Was Fac Upp Upp Zhi Pro Fac Ext Cet Arc Res Gar Res Qua Machines Disabled 49 | . 2 . . . . 2 . 2 3 . 4 1 . 8 . . 2 . 2 7 . 4 . 9 . 3 Max in Single Turn 4 | . 1 . . . . 1 . 2 1 . 1 . . 4 . . 1 . 1 1 . 1 . 2 . 1 Garrison Access 4 | . . . . . . 1 . . . . . 1 . . . . . . 2 . . . . . . . Garrison Relay 9 | . . . . . . . . . 3 . 2 . . . . . . . . . . . . 4 . . Machines Repaired . | . . . . . . . . . . . . . . . . . . . . . . . . . . . Machines Dismantled 5 | . . . . . . 2 . . . . . . . . . . . . . 3 . . . . . . Machines Sabotaged . | . . . . . . . . . . . . . . . . . . . . . . . . . . . Overloaded Fab Kills . | . . . . . . . . . . . . . . . . . . . . . . . . . . . Hacking | -11 -10 -10 -10 -9 -8 -8 -8 -6 -6 -6 -6 -5 -5 -5 -5 -5 -5 -4 -4 -4 -4 -4 -3 -3 -3 -3 --------- Run | Yrd Mat Min Exi Min Mat Sto Rec Fac Gar Fac Gar Fac Was Fac Upp Upp Zhi Pro Fac Ext Cet Arc Res Gar Res Qua Machines Accessed 88 | . 4 1 2 . 5 12 12 6 1 1 2 4 . 4 . . 5 . 12 10 2 . 3 2 . . Terminals 54 | . 3 1 . . 3 10 6 2 1 . 2 2 . 4 . . . . 5 10 2 . 1 2 . . Fabricators 2 | . . . . . . . . . . . . . . . . . . . 2 . . . . . . . Repair Stations 5 | . . . . . 1 1 . 1 . . . . . . . . . . 1 . . . 1 . . . Recycling Units 9 | . 1 . . . 1 . 5 1 . . . . . . . . . . 1 . . . . . . . Scanalyzers 3 | . . . . . . . . 1 . . . 1 . . . . . . 1 . . . . . . . Garrison Access 7 | . . . . . . 1 . 1 . 1 . 1 . . . . . . 2 . . . 1 . . . Total Hacks 197 | . 17 4 2 . 17 22 26 12 2 1 2 10 . 10 . . 18 . 22 16 5 . 7 4 . . Successful 105 | . 8 2 2 . 10 13 15 4 1 1 . 6 . 5 . . 18 . 8 5 2 . 3 2 . . Failed 91 | . 8 2 . . 7 9 11 8 1 . 2 4 . 5 . . . . 14 11 3 . 4 2 . . Catastrophic 19 | . 2 . . . 1 3 2 2 . . 1 1 . 1 . . . . 3 2 . . 1 . . . Database Lockouts 1 | . 1 . . . . . . . . . . . . . . . . . . . . . . . . . Manual 77 | . 12 2 1 . 4 16 12 4 1 . 1 . . 8 . . . . 9 3 . . 3 1 . . Terminals 121 | . 15 4 . . 8 17 15 5 2 . 2 2 . 10 . . . . 13 16 5 . 3 4 . . Fabricators 4 | . . . . . . . . . . . . . . . . . . . 4 . . . . . . . Repair Stations 16 | . . . . . 7 3 . 2 . . . . . . . . . . 1 . . . 3 . . . Recycling Units 15 | . 2 . . . 2 . 9 1 . . . . . . . . . . 1 . . . . . . . Scanalyzers 11 | . . . . . . . . 3 . . . 7 . . . . . . 1 . . . . . . . Garrison Access 8 | . . . . . . 2 . 1 . 1 . 1 . . . . . . 2 . . . 1 . . . Terminal Hacks 51 | . 4 2 2 . 3 3 4 . 1 . . 1 . 3 . . 18 . 1 5 2 . . 2 . . Record 10 | . . . 1 . . . . . . . . . . . . . 6 . . 1 2 . . . . . Part Schematic 5 | . 1 . . . . . . . . . . . . . . . 4 . . . . . . . . . Robot Analysis 5 | . 1 . . . . . . . . . . . . . . . 4 . . . . . . . . . Prototype ID Bank 5 | . . . . . . . 1 . . . . . . . . . 4 . . . . . . . . . Open Door 6 | . . . . . . 1 . . . . . . . . . . . . . 4 . . . 1 . . Open DSF 1 | . . . . . . . . . . . . 1 . . . . . . . . . . . . . . Branch Access Points 3 | . . . . . 1 . . . . . . . . 1 . . . . 1 . . . . . . . Emergency Access Points 1 | . . . . . . . . . 1 . . . . . . . . . . . . . . . . . Machine Index 1 | . . . . . . 1 . . . . . . . . . . . . . . . . . . . . Garrison Index 1 | . . . . . . . . . . . . . . 1 . . . . . . . . . . . . Alert Level 1 | . . 1 . . . . . . . . . . . . . . . . . . . . . . . . Unreport Threat 1 | . . . . . 1 . . . . . . . . . . . . . . . . . . . . . Locate Traps 3 | . . . . . 1 1 . . . . . . . 1 . . . . . . . . . . . . Hauler Manifests 3 | . 2 . . . . . 1 . . . . . . . . . . . . . . . . . . . Zone Layout 1 | . . 1 . . . . . . . . . . . . . . . . . . . . . . . . Security Stations 1 | . . . . . . . . . . . . . . . . . . . . . . . . 1 . . Derelict Proto ID Bank 1 | . . . 1 . . . . . . . . . . . . . . . . . . . . . . . Release Object 2 | . . . . . . . 2 . . . . . . . . . . . . . . . . . . . Fabricator Hacks 3 | . . . . . . . . . . . . . . . . . . . 3 . . . . . . . Network Status 1 | . . . . . . . . . . . . . . . . . . . 1 . . . . . . . Load Schematic 1 | . . . . . . . . . . . . . . . . . . . 1 . . . . . . . Build 1 | . . . . . . . . . . . . . . . . . . . 1 . . . . . . . Repair Station Hacks 10 | . . . . . 5 3 . 1 . . . . . . . . . . . . . . 1 . . . Scan Component 7 | . . . . . 3 2 . 1 . . . . . . . . . . . . . . 1 . . . Repair 3 | . . . . . 2 1 . . . . . . . . . . . . . . . . . . . . Recycling Unit Hacks 7 | . 1 . . . 1 . 4 1 . . . . . . . . . . . . . . . . . . Retrieve Components 7 | . 1 . . . 1 . 4 1 . . . . . . . . . . . . . . . . . . Scanalyzer 5 | . . . . . . . . . . . . 4 . . . . . . 1 . . . . . . . Insert Component 3 | . . . . . . . . . . . . 2 . . . . . . 1 . . . . . . . Analyze 2 | . . . . . . . . . . . . 2 . . . . . . . . . . . . . . Garrison Access Hacks 7 | . . . . . . 1 . 1 . 1 . 1 . . . . . . 2 . . . 1 . . . Unlock Access 3 | . . . . . . . . 1 . 1 . . . . . . . . . . . . 1 . . . Seal Access 4 | . . . . . . 1 . . . . . 1 . . . . . . 2 . . . . . . . Unauthorized Hacks 22 | . 3 . . . 1 6 7 1 . . . . . 2 . . . . 1 . . . 1 . . . Terminals 22 | . 3 . . . 1 6 7 1 . . . . . 2 . . . . 1 . . . 1 . . . Assimilate 1 | . . . . . . . . . . . . . . . . . . . . . . . 1 . . . Botnet 10 | . 2 . . . 1 1 2 1 . . . . . 2 . . . . 1 . . . . . . . Operators 1 | . 1 . . . . . . . . . . . . . . . . . . . . . . . . . Skim 10 | . . . . . . 5 5 . . . . . . . . . . . . . . . . . . . Fabricators . | . . . . . . . . . . . . . . . . . . . . . . . . . . . Repair Stations . | . . . . . . . . . . . . . . . . . . . . . . . . . . . Recycling Units . | . . . . . . . . . . . . . . . . . . . . . . . . . . . Scanalyzers . | . . . . . . . . . . . . . . . . . . . . . . . . . . . Garrison Access . | . . . . . . . . . . . . . . . . . . . . . . . . . . . Data Cores Recovered 1 | . . . . . . 1 . . . . . . . . . . . . . . . . . . . . Used . | . . . . . . . . . . . . . . . . . . . . . . . . . . . Hacking Detections 60 | . 4 1 . . 4 8 8 5 1 . 2 2 . 4 . . . . 9 7 2 . 2 1 . . Full Trace Events 4 | . . . . . . 1 . . . . . . . 1 . . . . 1 . 1 . . . . . Feedback Events 1 | . . . . . . . . . . . . . . 1 . . . . . . . . . . . . Corruption 1 | . . . . . . . . . . . . . . 1 . . . . . . . . . . . . Feedback Blocked . | . . . . . . . . . . . . . . . . . . . . . . . . . . . Robot Schematics Acquired . | . . . . . . . . . . . . . . . . . . . . . . . . . . . Robots Built . | . . . . . . . . . . . . . . . . . . . . . . . . . . . Authchips . | . . . . . . . . . . . . . . . . . . . . . . . . . . . Time . | . . . . . . . . . . . . . . . . . . . . . . . . . . . Total Robot Build Rating . | . . . . . . . . . . . . . . . . . . . . . . . . . . . Part Schematics Acquired 7 | . 1 . . . . . . . . . . 2 . . . . 4 . . . . . . . . . Parts Built 1 | . . . . . . . . . . . . . . . . . . . 1 . . . . . . . Authchips . | . . . . . . . . . . . . . . . . . . . . . . . . . . . Time 187 | . . . . . . . . . . . . . . . . . . . 187 . . . . . . . Total Part Build Rating 7 | . . . . . . . . . . . . . . . . . . . 7 . . . . . . . Parts Repaired 3 | . . . . . 2 1 . . . . . . . . . . . . . . . . . . . . Time 90 | . . . . . 52 38 . . . . . . . . . . . . . . . . . . . . Parts Recycled . | . . . . . . . . . . . . . . . . . . . . . . . . . . . Recycled Matter . | . . . . . . . . . . . . . . . . . . . . . . . . . . . Retrieved Matter . | . . . . . . . . . . . . . . . . . . . . . . . . . . . Retrieved Components 6 | . 1 . . . . . 5 . . . . . . . . . . . . . . . . . . . Parts Scanalyzed 2 | . . . . . . . . . . . . 2 . . . . . . . . . . . . . . Part Schematics Acquired 2 | . . . . . . . . . . . . 2 . . . . . . . . . . . . . . Parts Damaged . | . . . . . . . . . . . . . . . . . . . . . . . . . . . Bothacking | -11 -10 -10 -10 -9 -8 -8 -8 -6 -6 -6 -6 -5 -5 -5 -5 -5 -5 -4 -4 -4 -4 -4 -3 -3 -3 -3 ------------ Run | Yrd Mat Min Exi Min Mat Sto Rec Fac Gar Fac Gar Fac Was Fac Upp Upp Zhi Pro Fac Ext Cet Arc Res Gar Res Qua Used RIF Installer 3 | . . . . . . . . . 1 . 1 . . . . . . . . . . . . 1 . . Robot Detection 1 | . . . . . . . . . . . . . . . . . . . . . . . . 1 . . Structural Interface 1 | . . . . . . . . . . . 1 . . . . . . . . . . . . . . . Robots Hacked 7 | . . . . . . . . . 1 . . 1 . . . . . . 1 2 . . . 2 . . Non-combat 3 | . . . . . . . . . . . . 1 . . . . . . 1 1 . . . . . . Combat 4 | . . . . . . . . . 1 . . . . . . . . . . 1 . . . 2 . . Robot Hacks Applied 7 | . . . . . . . . . 1 . . 1 . . . . . . 1 2 . . . 2 . . parse_system 2 | . . . . . . . . . 1 . . . . . . . . . . 1 . . . . . . find_chute 1 | . . . . . . . . . . . . 1 . . . . . . . . . . . . . . drop_inventory 2 | . . . . . . . . . . . . . . . . . . . 1 1 . . . . . . amplify_resonance 1 | . . . . . . . . . . . . . . . . . . . . . . . . 1 . . formatsys_high 1 | . . . . . . . . . . . . . . . . . . . . . . . . 1 . . Relay Couplers Released 39 | . . . . . . . . . 12 . 10 . . . . . . . . . . . . 17 . . Machine Destruction 39 | . . . . . . . . . 12 . 10 . . . . . . . . . . . . 17 . . Attached 3 | . . . . . . . . . . . . . . . . . . . 1 . . . . 2 . . Fabnet Peak Effective % . | . . . . . . . . . . . . . . . . . . . . . . . . . . . Robots Rewired 21 | . . . . . . . . . 9 . 7 . . . . 1 . . . 3 . . . 1 . . Allies Hacked 1 | . . . . . . . . . . . . . . . . . . . . . . . . 1 . . Hacks Repelled . | . . . . . . . . . . . . . . . . . . . . . . . . . . . Allies | -11 -10 -10 -10 -9 -8 -8 -8 -6 -6 -6 -6 -5 -5 -5 -5 -5 -5 -4 -4 -4 -4 -4 -3 -3 -3 -3 -------- Run | Yrd Mat Min Exi Min Mat Sto Rec Fac Gar Fac Gar Fac Was Fac Upp Upp Zhi Pro Fac Ext Cet Arc Res Gar Res Qua Total Allies 49 | . . . . . . 10 . . 11 . 7 . . . . 1 . . . 13 . . 3 4 . . Largest Group 11 | . . . . . . 10 . . 9 9 11 4 . . . 1 1 1 . 8 5 3 3 4 3 . Highest-Rated Group 498 | . . . . . . 173 . . 498 498 435 278 . . . 30 30 30 . 332 193 98 138 238 200 . Highest-Rated Ally 119 | . . . . . . 29 . . 119 119 119 119 . . . 30 30 30 . 51 51 44 46 85 85 . Total Orders 11 | . . . . . . . . . 2 . 1 . . . 4 . . . . . . . . 2 . 2 STAY 3 | . . . . . . . . . 1 . 1 . . . . . . . . . . . . 1 . . FOLLOW 2 | . . . . . . . . . 1 . . . . . . . . . . . . . . 1 . . EXPLORE 4 | . . . . . . . . . . . . . . . 3 . . . . . . . . . . 1 RETURN 2 | . . . . . . . . . . . . . . . 1 . . . . . . . . . . 1 Ally Attacks 422 | . . . . . . 112 . . 47 12 99 16 . . . . . . . 54 23 . 15 41 3 . Total Damage 9741 | . . . . . . 1207 . . 719 479 1998 882 . . . . . . . 1347 655 . 360 2014 80 . Kills 85 | . . . . . . 23 . . 5 3 17 8 . . . . . . . 10 6 . 2 11 . . Allies Corrupted 4 | . . . . . . . . . . . . 1 . . . . . . . 1 . . . . 2 . Allies Melted . | . . . . . . . . . . . . . . . . . . . . . . . . . . . Intel | -11 -10 -10 -10 -9 -8 -8 -8 -6 -6 -6 -6 -5 -5 -5 -5 -5 -5 -4 -4 -4 -4 -4 -3 -3 -3 -3 ------- Run | Yrd Mat Min Exi Min Mat Sto Rec Fac Gar Fac Gar Fac Was Fac Upp Upp Zhi Pro Fac Ext Cet Arc Res Gar Res Qua Robot Analysis Total 5 | . 1 . . . . . . . . . . . . . . . 4 . . . . . . . . . Derelict Logs Recovered 7 | . . 2 . 1 . . . . . . . . . . 1 2 . 1 . . . . . . . . Drone Launches 4 | . . . . . . . . . . . . . . . 3 . . . . . . . . . . 1 Drone Recoveries 2 | . . . . . . . . . . . . . . . 1 . . . . . . . . . . 1 Exploration | -11 -10 -10 -10 -9 -8 -8 -8 -6 -6 -6 -6 -5 -5 -5 -5 -5 -5 -4 -4 -4 -4 -4 -3 -3 -3 -3 ------------- Run | Yrd Mat Min Exi Min Mat Sto Rec Fac Gar Fac Gar Fac Was Fac Upp Upp Zhi Pro Fac Ext Cet Arc Res Gar Res Qua Turns Passed 23936 | 228 812 630 389 246 778 1183 1424 1099 1731 402 2631 819 148 1631 1129 868 274 414 1453 1329 406 681 1015 1503 325 388 Spaces Moved 13891 | 98 439 382 240 140 278 494 741 766 840 231 1249 262 135 962 575 543 169 266 1696 1240 248 156 465 748 198 330 Core 46 | 4 . . . . . . . . . . . . . . . . . . . . . 26 . . . 16 Treads 5187 | 94 439 382 240 140 278 494 124 509 179 . 275 41 . . . . . . 8 428 248 130 308 748 122 . Legs 5571 | . . . . . . . 545 257 661 231 813 221 135 938 575 543 169 266 49 . . . 146 . . 22 Wheels 34 | . . . . . . . 34 . . . . . . . . . . . . . . . . . . . Hover 305 | . . . . . . . 38 . . . 161 . . 24 . . . . . . . . . . . 82 Flight 2748 | . . . . . . . . . . . . . . . . . . . 1639 812 . . 11 . 76 210 Fastest Speed 39 | 50 160 160 160 160 160 160 97 97 102 168 107 107 107 107 139 139 125 125 47 47 122 122 116 106 106 39 Average Speed 130 | 155 160 160 160 160 160 160 118 112 142 168 180 233 107 117 139 139 134 125 49 77 122 401 173 161 111 63 Slowest Speed 1800 | 160 160 160 160 160 240 160 263 136 168 168 311 373 107 182 139 139 139 125 125 143 122 1800 225 217 200 200 Overloaded Moves . | . . . . . . . . . . . . . . . . . . . . . . . . . . . Propulsion Burnouts . | . . . . . . . . . . . . . . . . . . . . . . . . . . . Robots Hopped 32 | . . . . . . . . . . . 1 . . . . . . . 10 2 . . . . . 19 Cave-ins Triggered . | . . . . . . . . . . . . . . . . . . . . . . . . . . . Teleports 1 | . . . . . . . . . . . . . . . . . . . . . . . . . . 1 Exploration Rate (%) 51 | 4 69 79 62 46 25 72 90 15 82 8 84 7 74 15 80 55 60 38 22 87 75 80 12 85 4 49 Regions Visited 26 Branch Regions 13 Pre-discovered Areas 12 | . . 1 1 1 . 2 3 . . . . . . . . . 3 1 . . . . . . . . Known Exits Taken 7 | . . . . . 1 1 . 1 . 1 . . . 1 . . . . 1 . . . 1 . . . Unknown Exits Taken 14 | 1 1 1 1 1 . . 1 . . . . . . . 1 1 1 1 . 1 1 1 . . 1 . Scrap Searched 10 | . . 1 . 2 . . . . . . . . . . 4 2 . 1 . . . . . . . . Spaces Dug 120 | . . 6 . . 4 6 . . 6 . 18 1 . 21 6 15 . 1 18 1 . . 3 12 . 2 Terrain Destroyed 775 | . 12 19 . 32 9 6 . 14 73 . 18 6 . 208 17 69 . 96 62 9 4 11 16 73 12 9 Melee 48 | . . . . . 4 6 . . . . 3 1 . 17 4 13 . . . . . . . . . . Projectile 265 | . . . . . . . . . . . . 5 . 92 13 12 . 25 49 9 4 11 16 8 12 9 AOE 459 | . 12 19 . 32 5 . . 14 70 . 15 . . 99 . 44 . 71 13 . . . . 65 . . Terrain Rammed . | . . . . . . . . . . . . . . . . . . . . . . . . . . . Walls Destroyed . | . . . . . . . . . . . . . . . . . . . . . . . . . . . Machines Disabled . | . . . . . . . . . . . . . . . . . . . . . . . . . . . Actions | -11 -10 -10 -10 -9 -8 -8 -8 -6 -6 -6 -6 -5 -5 -5 -5 -5 -5 -4 -4 -4 -4 -4 -3 -3 -3 -3 --------- Run | Yrd Mat Min Exi Min Mat Sto Rec Fac Gar Fac Gar Fac Was Fac Upp Upp Zhi Pro Fac Ext Cet Arc Res Gar Res Qua Total 18455 | 134 510 397 249 158 507 749 1267 960 1230 243 1540 460 138 1334 857 596 205 320 2248 1539 319 189 651 916 274 465 Wait 2690 | 2 12 7 . 9 118 115 466 132 159 3 150 151 . 184 196 2 9 5 463 176 20 7 141 39 57 67 Move 13815 | 97 438 381 239 139 277 493 740 766 839 231 1246 262 134 961 574 542 168 265 1676 1235 247 155 465 747 197 301 Hop 22 | . . . . . . . . . . . 1 . . . . . . . 9 2 . . . . . 10 Pick Up 152 | 8 14 . 3 1 13 6 13 12 5 1 9 9 . 6 8 . 1 4 12 10 4 2 2 8 . 1 Fast Attach 127 | 7 4 . . . 10 15 3 2 1 2 4 3 2 13 7 2 4 2 7 10 5 2 8 3 . 11 Attach 50 | . 1 . 1 1 7 . 1 2 8 1 1 1 . 1 2 . 1 3 2 3 1 . 2 6 . 5 Detach 48 | . 2 . 2 . 3 2 4 2 7 3 . 1 . 2 1 . 1 . 1 7 . 1 3 3 . 3 Swap 150 | . 4 3 . 4 14 19 1 9 12 1 14 4 . 11 7 4 . 7 4 11 3 . 5 12 . 1 Drop 228 | . 13 . 4 1 17 29 23 9 2 . 10 12 2 15 13 2 3 5 17 20 8 3 8 6 . 6 Fire 837 | 20 22 2 . 3 43 43 16 26 81 1 57 16 . 116 30 17 18 29 56 40 31 19 17 89 20 25 Melee 154 | . . . . . 4 8 . . 43 . 29 1 . 25 15 26 . . . . . . . . . 3 Ram . | . . . . . . . . . . . . . . . . . . . . . . . . . . . Kick . | . . . . . . . . . . . . . . . . . . . . . . . . . . . Crush 1 | . . . . . 1 . . . . . . . . . . . . . . . . . . . . . Escape Stasis 79 | . . . . . . 2 . . 22 . 19 . . . . . . . 1 1 . . . 2 . 32 Rewire 53 | . . . . . . . . . 51 . . . . . . 1 . . . . . . . 1 . . Trap 8 | . . 4 . . . . . . . . . . . . 4 . . . . . . . . . . . Miscellaneous 41 | . . . . . . 17 . . . . . . . . . . . . . 24 . . . . . . Route ------- -11/Scrapyard -10/Materials (discovered 4 exits: [*Mat x3] / *Min) -10/Mines (discovered 2 exits: [*Mat] / *Exi) -10/Exiles -9/Mines -8/Materials -8/Storage (discovered 2 exits: [*Fac] / *Rec) -8/Recycling -6/Factory (discovered 3 exits: Fac x2 / Gar) -6/Garrison (discovered 3 exits: *Fac x3) -6/Factory -6/Garrison (discovered 3 exits: *Fac x3) -5/Factory -5/Waste -5/Factory (discovered 2 exits: *Upp x2) -5/Upper Caves -5/Upper Caves (discovered 2 exits: *Fac / *Zhi) -5/Zhirov -4/Proximity Caves -4/Factory (discovered 4 exits: Upp x2 / *Ext x2) -4/Extension (discovered 3 exits: *Res x2 / *Cet) -4/Cetus (discovered 3 exits: *Res x2 / [*Arc]) -4/Archives (discovered 3 exits: *Res / [*Hub x2]) -3/Research (discovered 2 exits: [*Res] / Gar) -3/Garrison (discovered 4 exits: [*Res x3] / [*Res]) -3/Research -3/Quarantine History --------- Turn | Location | Event 55 | -11/Scrapyard | Discovered new exit (range 14) 229 | -11/Scrapyard | Entered Materials 315 | -10/Materials | Build established: Mutant 377 | -10/Materials | Discovered new exit (range 14) 423 | -10/Materials | Discovered new exit (range 15) 588 | -10/Materials | Central database locked down 720 | -10/Materials | Discovered new exit (range 13) 821 | -10/Materials | Discovered new exit (range 8) 1041 | -10/Materials | Entered Mines 1212 | -10/Mines | Discovered new exit (range 10) 1413 | -10/Mines | Learned location of Zion (-6) 1510 | -10/Mines | Found a hidden stash of uninstalled traps 1608 | -10/Mines | Deemed a non-threat by the Exiles lab entrance 1608 | -10/Mines | Discovered new exit (range 5) 1671 | -10/Mines | Entered Exiles 1714 | -10/Exiles | Met 8R-AWN 1741 | -10/Exiles | Met EX-HEX 1800 | -10/Exiles | Met EX-BIN 1823 | -10/Exiles | Aligned with FarCom system 1824 | -10/Exiles | Given EX-Vault access code 1866 | -10/Exiles | Opened EX-Vault 1876 | -10/Exiles | Found Cloak of Protection 1907 | -10/Exiles | Warned to stay clear of 0b10 Research branches 1932 | -10/Exiles | Exiles lab attacked by MAIN.C 2044 | -10/Exiles | Discovered new exit (range 12) 2060 | -10/Exiles | Left Exiles lab with Cloak of Protection 2060 | -10/Exiles | Entered Mines 2145 | -9/Mines | Met a Derelict bent on vengeance 2291 | -9/Mines | Discovered new exit (range 10) 2306 | -9/Mines | Entered Materials 2306 | -8/Materials | Evolved 4 slots: Propulsion x1, Utility x2, Weapon x1 2367 | -8/Materials | Build established: Skirmisher 2554 | -8/Materials | Lost 3 parts (1p1n1w) 2733 | -8/Materials | Repaired Lgt. Armor Plating 2761 | -8/Materials | Repaired Lgt. Treads 2804 | -8/Materials | Identified exit to Storage 2805 | -8/Materials | Garrison activated, responded to threat 2875 | -8/Materials | Destroyed 8 combat bots 3071 | -8/Materials | Build established: Scavenger-Skirmisher 3084 | -8/Materials | Entered Storage 3085 | -8/Storage | Identified exit to Recycling 3146 | -8/Storage | Garrison activated, responded to threat 3199 | -8/Storage | Assisted by bots powering up and referring to "LRC-V3" 3269 | -8/Storage | Lost 4 allies 3984 | -8/Storage | Learned location of 1 exit from Lower Caves 4024 | -8/Storage | Discovered new exit (range 8) 4044 | -8/Storage | Loaded intel: 14 trap records 4096 | -8/Storage | Learned location of 1 exit from Recycling 4137 | -8/Storage | Learned Storage trap positions 4166 | -8/Storage | Learned location of Lower Caves (-7) 4184 | -8/Storage | Learned location of 2 exits from Lower Caves 4193 | -8/Storage | Learned 4 Lower Caves zone layouts 4201 | -8/Storage | Repaired Reactive Plating 4241 | -8/Storage | Build established: Skirmisher 4261 | -8/Storage | Used back door to open Recycling access 4267 | -8/Storage | Entered Recycling 4268 | -8/Recycling | Identified exit to Scraptown 4432 | -8/Recycling | Scanned before Scraplab entrance 4445 | -8/Recycling | Angered Scraplab inhabitants 4503 | -8/Recycling | Found Prototype Device 4503 | -8/Recycling | Identified Scrap Engine 5056 | -8/Recycling | Build established: Construct 5358 | -8/Recycling | Discovered new exit (range 16) 5506 | -8/Recycling | Learned location of 2 exits from Factory 5561 | -8/Recycling | Learned location of Lower Caves (-7) 5572 | -8/Recycling | Learned 2 Lower Caves zone layouts 5575 | -8/Recycling | Learned Factory repair station intel 5578 | -8/Recycling | Learned location of Storage (-8) 5593 | -8/Recycling | Learned Factory emergency access door positions 5618 | -8/Recycling | Learned location of 1 exit from Storage 5651 | -8/Recycling | Learned Storage security intel 5691 | -8/Recycling | Entered Factory 5691 | -6/Factory | Evolved 4 slots: Power x1, Propulsion x1, Utility x2 5692 | -6/Factory | Identified exit to Factory 5694 | -6/Factory | Loaded intel: 6 repair station locations 6773 | -6/Factory | Found Prototype Launcher 6773 | -6/Factory | Identified Scatter Rocket Array 6790 | -6/Factory | Identified exit to Garrison 6790 | -6/Factory | Entered Garrison 6852 | -6/Garrison | Triggered checkpoint 6914 | -6/Garrison | Garrison Relay disabled 7148 | -6/Garrison | Triggered checkpoint 7414 | -6/Garrison | Triggered checkpoint 7605 | -6/Garrison | Discovered new exit (range 6) 7647 | -6/Garrison | Destroyed 8 combat bots 7766 | -6/Garrison | Triggered checkpoint 7798 | -6/Garrison | Garrison Relay disabled 7907 | -6/Garrison | Triggered checkpoint 7975 | -6/Garrison | Build established: Commander-Construct 7987 | -6/Garrison | Discovered new exit (range 12) 8102 | -6/Garrison | Triggered checkpoint 8207 | -6/Garrison | Garrison Relay disabled 8225 | -6/Garrison | Found embedded Infiltrators 8340 | -6/Garrison | Triggered checkpoint 8390 | -6/Garrison | Installed Relay Interface Framework 8433 | -6/Garrison | Rewired Executioner 8436 | -6/Garrison | Rewired Executioner 8492 | -6/Garrison | Discovered new exit (range 5) 8521 | -6/Garrison | Entered Factory 8521 | -6/Factory | Accompanied by 9 allies 8800 | -6/Factory | Lost 3 allies 8871 | -6/Factory | First assault squad dispatched 8920 | -6/Factory | Identified exit to Garrison 8923 | -6/Factory | Entered Garrison 8923 | -6/Garrison | Accompanied by 6 allies 9136 | -6/Garrison | Garrison Relay disabled 9219 | -6/Garrison | Triggered checkpoint 9220 | -6/Garrison | Triggered checkpoint 9284 | -6/Garrison | Triggered checkpoint 9384 | -6/Garrison | Discovered exit to Factory (range 11) 9390 | -6/Garrison | Spotted B-86 Titan 9394 | -6/Garrison | Allies destroyed B-86 Titan 9408 | -6/Garrison | Rewired B-75 Beast 9578 | -6/Garrison | Expanded RIF knowledge: Structural Interface 10008 | -6/Garrison | Garrison Relay disabled 10125 | -6/Garrison | Triggered checkpoint 10330 | -6/Garrison | Discovered exit to Factory (range 10) 10895 | -6/Garrison | Triggered checkpoint 11038 | -6/Garrison | Lost 3 allies 11084 | -6/Garrison | Discovered exit to Factory (range 11) 11161 | -6/Garrison | Triggered checkpoint 11243 | -6/Garrison | Triggered checkpoint 11554 | -6/Garrison | Entered Factory 11554 | -5/Factory | Accompanied by 4 allies 11554 | -5/Factory | Evolved 2 slots: Propulsion x1, Utility x1 11913 | -5/Factory | Identified exit to DSF 12030 | -5/Factory | Found Exp. Targeting Computer 12034 | -5/Factory | Found Adv. Kinecellerator 12038 | -5/Factory | Found Exp. Core Analyzer 12319 | -5/Factory | Build established: Scavenger-Construct 12373 | -5/Factory | Sucked down chute 12373 | -5/Factory | Entered Waste 12377 | -5/Waste | Found Prototype Device 12377 | -5/Waste | Identified Exp. Sensor Array 12388 | -5/Waste | EMP discharged 12413 | -5/Waste | Spotted C-40 Crusher 12413 | -5/Waste | Spotted C-40 Crusher 12467 | -5/Waste | Spotted C-40 Crusher 12488 | -5/Waste | EMP discharged 12488 | -5/Waste | System corruption reached 10% 12490 | -5/Waste | Spotted C-40 Crusher 12495 | -5/Waste | Spotted C-40 Crusher 12503 | -5/Waste | Discovered new exit (range 16) 12521 | -5/Waste | Entered Factory 12821 | -5/Factory | First assault squad dispatched 13222 | -5/Factory | Identified exit to Upper Caves 14132 | -5/Factory | Destroyed 11 combat bots 14152 | -5/Factory | Entered Upper Caves 14900 | -5/Upper Caves | Discovered new exit (range 63) 15150 | -5/Upper Caves | Encountered a Warlord checkpoint 15191 | -5/Upper Caves | Attracted the attention of an 0b10 checkpoint 15242 | -5/Upper Caves | Learned 12 Factory zone layouts 15281 | -5/Upper Caves | Entered another Upper Caves area 15353 | -5/Upper Caves | Learned Factory trap positions 15415 | -5/Upper Caves | Discovered new exit (range 15) 15634 | -5/Upper Caves | Build established: Trapper-Construct 15967 | -5/Upper Caves | Attracted the attention of an 0b10 outpost 16125 | -5/Upper Caves | Discovered new exit (range 15) 16149 | -5/Upper Caves | Entered Zhirov 16149 | -5/Zhirov | Accompanied by 1 ally 16149 | -5/Zhirov | Discovered new exit (range 3) 16175 | -5/Zhirov | Met Zhirov 16206 | -5/Zhirov | Learned location of Quarantine (-3) 16206 | -5/Zhirov | Learned location of Testing (-2) 16206 | -5/Zhirov | Learned location of Command (-1) 16219 | -5/Zhirov | Zhirov requested help retrieving the SGEMP Prototype 16246 | -5/Zhirov | Found Alien Artifact 16262 | -5/Zhirov | Found Alien Artifact 16262 | -5/Zhirov | Identified Integrated Reactor 16262 | -5/Zhirov | Installed Integrated Reactor, increased core energy generation (+10) 16423 | -5/Zhirov | Entered Proximity Caves 16423 | -4/Proximity Caves | Accompanied by 1 ally 16492 | -4/Proximity Caves | Spotter reported a threat 16740 | -4/Proximity Caves | Discovered new exit (range 5) 16837 | -4/Proximity Caves | Entered Factory 16837 | -4/Factory | Evolved 2 slots: Power x1, Utility x1 16838 | -4/Factory | Identified exit to Extension 16840 | -4/Factory | Loaded intel: 113 trap records 17622 | -4/Factory | Identified exit to Upper Caves 17856 | -4/Factory | Fabricated Assault Drone Bay? 18290 | -4/Factory | Entered Extension 18449 | -4/Extension | Rescued a captive Derelict 18450 | -4/Extension | Rescued a captive Derelict 18470 | -4/Extension | Rescued a captive Derelict 18604 | -4/Extension | Rescued a captive Derelict 18604 | -4/Extension | Rescued a captive Derelict 18936 | -4/Extension | Spotted B-86 Titan 18947 | -4/Extension | Spotted B-86 Titan 18955 | -4/Extension | Destroyed B-86 Titan 18992 | -4/Extension | Lost 5 allies 19019 | -4/Extension | Discovered new exit (range 3) 19151 | -4/Extension | Rescued a captive Derelict 19152 | -4/Extension | Rescued a captive Derelict 19178 | -4/Extension | Rescued a captive Derelict 19179 | -4/Extension | Rescued a captive Derelict 19391 | -4/Extension | Rescued a captive Derelict 19430 | -4/Extension | Discovered new exit (range 10) 19431 | -4/Extension | Discovered new exit (range 6) 19619 | -4/Extension | Entered Cetus 19619 | -4/Cetus | Accompanied by 5 allies 19641 | -4/Cetus | Spotted Cetus Guard 19642 | -4/Cetus | Destroyed Cetus Guard 19644 | -4/Cetus | Spotted Cetus Guard 19645 | -4/Cetus | Spotted Cetus Guard 19656 | -4/Cetus | Destroyed Cetus Guard 19659 | -4/Cetus | Allies destroyed Cetus Guard 19665 | -4/Cetus | Allies destroyed Cetus Guard 19754 | -4/Cetus | Discovered new exit (range 16) 19875 | -4/Cetus | Discovered new exit (range 16) 19918 | -4/Cetus | Spotted Cetus Guard 19918 | -4/Cetus | Destroyed Cetus Guard 19922 | -4/Cetus | Spotted Cetus Guard 19929 | -4/Cetus | Destroyed Cetus Guard 19946 | -4/Cetus | Discovered new exit (range 16) 19955 | -4/Cetus | Met Revision 17 20025 | -4/Cetus | Entered Archives 20025 | -4/Archives | Accompanied by 3 allies 20073 | -4/Archives | Discovered new exit (range 16) 20088 | -4/Archives | Discovered new exit (range 16) 20104 | -4/Archives | Discovered new exit (range 16) 20706 | -4/Archives | Entered Research 20706 | -3/Research | Accompanied by 3 allies 20706 | -3/Research | Evolved 2 slots: Utility x1, Weapon x1 20724 | -3/Research | Found Prototype Hackware 20724 | -3/Research | Identified Exp. Hacking Suite 20906 | -3/Research | Revision forces began assault on 0b10 21060 | -3/Research | Met up with Revision 17++ 21232 | -3/Research | Discovered new exit (range 11) 21406 | -3/Research | Research terminal network offline 21620 | -3/Research | Identified exit to Garrison 21721 | -3/Research | Entered Garrison 21725 | -3/Garrison | Triggered checkpoint 21730 | -3/Garrison | Spotted B-90 Cyclops 21770 | -3/Garrison | Destroyed B-90 Cyclops 21815 | -3/Garrison | Rewired B-75 Beast 22070 | -3/Garrison | Spotted B-86 Titan 22073 | -3/Garrison | Triggered checkpoint 22121 | -3/Garrison | Lost 3 parts (1p1u1w) 22130 | -3/Garrison | Destroyed 8 combat bots 22149 | -3/Garrison | Triggered checkpoint 22198 | -3/Garrison | Triggered checkpoint 22265 | -3/Garrison | Garrison Relay disabled 22355 | -3/Garrison | Discovered new exit (range 10) 22383 | -3/Garrison | Expanded RIF knowledge: Robot Detection 22559 | -3/Garrison | Triggered checkpoint 22622 | -3/Garrison | Garrison Relay disabled 22625 | -3/Garrison | Triggered checkpoint 22660 | -3/Garrison | Garrison Relay disabled 22706 | -3/Garrison | Learned Research security intel 22721 | -3/Garrison | Discovered new exit (range 9) 22989 | -3/Garrison | Rescued a captive Derelict 22990 | -3/Garrison | Rescued a captive Derelict 22997 | -3/Garrison | Discovered new exit (range 12) 23020 | -3/Garrison | Garrison Relay disabled 23103 | -3/Garrison | Triggered checkpoint 23155 | -3/Garrison | Discovered new exit (range 3) 23224 | -3/Garrison | Entered Research 23224 | -3/Research | Accompanied by 3 allies 23249 | -3/Research | Discovered new exit (range 5) 23262 | -3/Research | System corruption reached 10% 23511 | -3/Research | Garrison activated, responded to threat 23516 | -3/Research | First assault squad dispatched 23549 | -3/Research | Entered Quarantine 23550 | -3/Quarantine | Maximum security lockdown engaged 23680 | -3/Quarantine | Found Alien Artifact 23680 | -3/Quarantine | Identified Subatomic Replicator 23728 | -3/Quarantine | Spotted Executioner 23728 | -3/Quarantine | Spotted Striker 23728 | -3/Quarantine | Spotted Executioner 23730 | -3/Quarantine | Identified Transdimensional Reconstructor 23730 | -3/Quarantine | Warped through subspace 23761 | -3/Quarantine | Found Alien Impact Weapon 23761 | -3/Quarantine | Identified Core Stripper 23798 | -3/Quarantine | Found Alien Artifact 23798 | -3/Quarantine | Identified Core Reset Matrix 23798 | -3/Quarantine | Used Core Reset Matrix 23802 | -3/Quarantine | Detected hypermatrix surge 23802 | -3/Quarantine | Sensed 5 artifacts in vicinity 23806 | -3/Quarantine | Scanned by Researcher 23808 | -3/Quarantine | Spotted Investigator 23862 | -3/Quarantine | Core integrity fell below 50% 23881 | -3/Quarantine | Destroyed Investigator 23900 | -3/Quarantine | Spotted Investigator 23900 | -3/Quarantine | Spotted Executioner 23909 | -3/Quarantine | System corruption reached 30% 23925 | -3/Quarantine | Core integrity fell below 20% 23925 | -3/Quarantine | Released all parts (1) 23937 | -3/Quarantine | Destroyed by G-67 Veteran with Field Laser Last Messages --------------- 23923_ P-80 Master resets G-67 Veteran, system corruption cleaned. 23923_ P-80 Master resets P-80 Master, system corruption cleaned. 23923_ P-80 Master resets G-67 Veteran, system corruption cleaned. 23923_ P-80 Master stasis bubble strength at 179. 23923_ P-80 Master stasis bubble strength at 130. 23924_ Flying FPA-QT Exoskeleton destroyed. 23924_ P-80 Master stasis bubble strength at 172. 23924_ P-80 Master stasis bubble strength at 123. 23925_ P-80 Master stasis bubble strength at 165. 23925_ P-80 Master resets P-80 Master, system corruption cleaned. 23925_ Released Hcp. Storage Unit. 23925_ P-80 Master stasis bubble strength at 116. 23927_ P-80 Master resets G-67 Veteran, system corruption cleaned. 23936_ P> R3J5GHGXJGP6H6N%9K,,V#=F 23936_ Penetrated by Slug. Map ----- +----------------------------------------------------+ | | | | | | | | | | | ?????????????????????????????????????????????????? | | ?????????????????????????????????????????????????? | | ?????????????????????????????????????????????????? | | ?????????????????????????????????????????????????? | | ?????????????????????????????????????????????????? | | ?????????????????????????????????????????????????? | | ?????????????????????????????????????????????????? | | ?????????????????????????????????????????????????? | | ?????????????????????????????????????????????????? | | ?????????????????????????????????????????????????? | | ?????????????????????????????????????????????????? | | ?????????????????????????????????????????????????? | | ?????????????????????????????????????????????????? | | ?????????????????????????????????????????????????? | | ????????????????? ?????????????????????????????? | | ??????????????? ?????????????????????????????? | | ??????????????w "" ????????###??????????????????? | | ?????????????? "%%" #?###### #??????????????????? | | ?????????????"" "" #?# Y #??????????????????? | | ????????#????"" | "?# YY #??????????????????? | | ????????# ??""" "?# @ ####??????????????????? | | ????????# """" g "#####g#?????????????????????? | | ????????# """" g" T#???#p#?????????????????????? | | ????????# Yh""#???# #?????????????????????? | | ????????# """E " "????#p#?????????????????????? | | ????????# "%%%b Ygg"????#p#?????????????????????? | | ????????# "%""%" pg######p#?????????????????????? | | ????????# " "pppY!= gY!cp#?????????????????????? | | ????????# i""G"" =%%Y !gg!#?????????????????????? | | ????????# g g b Yp!g Yebg!/?????????????????????? | | ????????# g Y ggggh!!#?????????????????????? | | ????????##+ ### gi# gg g###?????????????????????? | | ???????? ?????## ## p##???????????????????????? | | ????????????????#p# ## #????????????????????????? | | ????????????????#b#######????????????????????????? | | ????????????????#g#????###########???????????????? | | ?????????########i##???# """T""" #???????????????? | | ??????# #???# #???????????????? | | ??????# """ #???# #???????????????? | | ??????# "]" #???# = !#???????????????? | | ??????# """ #########/###########?????????? | | ??????# " "" # + + #?????????? | | ??????# """"" # # # """ #?????????? | | ???? # # """ #?????????? | | ????? # # / + """ #?????????? | +----------------------------------------------------+ Best States ------------- Heat Dissipation 115 Energy Generation 51 Energy Capacity 1466 Matter Stores 300 Matter Capacity 300 Sight Range 16 Terrain Scan Range 20 Terrain Scan Density 85 Cloak Strength 5 Armor Coverage 600 Resistance: KI 20 Weapon Shielding 66 Weapon Cycling 20 Evasion (%) 62 Targeting Accuracy 12 Recoil Reduction 5 Kinecelleration 50 Offensive Hacking 16 Relay Coupler Types 1 Relay Coupler Value 34 Trap Extractor Capacity 8 Item Schematics ----------------- None Robot Schematics ------------------ None Fabricated ------------ Assault Drone Bay | x1 | -4/Factory Alien Tech Used ----------------- Integrated Reactor Subatomic Replicator Transdimensional Reconstructor Core Stripper Core Reset Matrix Achievements -------------- Error 47 Generalissimo Challenges ------------ None Game ------ Seed VisualBackupPropulsion Manual? 0 Play Time 04:11:31 Cumulative 138.4 hours Start 2025.03.05 @ 23:31:38 End 2025.03.06 @ 14:48:08 Sessions 9 Manual Loads 0 Difficulty Rogue Special Mode None Game No. 80 Rogue 80 Adventurer 0 Explorer 0 Win Type - Total 3 Types 3/0/0/0/0/0/0/0/0 Lore% 57 Gallery% 67 Achievement% 55 Wizard Run 0 Options --------- Layout 0 ASCII 1 Keyboard 1 Movement Numpad Keybinds 0 Fullscreen 2 Font 20/Terminus Map View 66x50 Zoom Use 0% Tactical HUD 1 Map Filters NONE Filters NONE Steam 1 RUN: 3cb0a807-426b-459b-a1ad-a9e9097166c8